bitfinex-derivatives/quotes_BTCF0:USTF0_20250810
["timestamp","ask_amount","ask_price","bid_price","bid_amount"]
[1754794109588,0.92783355,117260.0,117250.0,1.0967304]
[1754794110287,0.91910299,117260.0,117250.0,1.0967304]
[1754794110492,0.91910299,117260.0,117250.0,1.1202104]
[1754794110693,0.92110299,117260.0,117250.0,1.1192104]
[1754794110884,0.83583919,117260.0,117250.0,1.1192104]
[1754794112394,0.92110299,117260.0,117250.0,1.1192104]
[1754794112689,0.81102919,117260.0,117250.0,1.1726004]
[1754794113996,0.81102919,117260.0,117250.0,1.4416004]
[1754794115491,0.80902919,117260.0,117250.0,1.4426004]
[1754794115685,0.80902919,117260.0,117250.0,1.4436004]
[1754794115888,0.89429299,117260.0,117250.0,1.4436004]
[1754794116096,0.89429299,117260.0,117250.0,1.4446004]
[1754794116489,0.89429299,117260.0,117250.0,1.4456004]
[1754794118393,0.5479938,117260.0,117250.0,1.4272004]
[1754794118899,0.5479938,117260.0,117250.0,1.4471704]
[1754794119102,0.5479938,117260.0,117250.0,1.4997604]
[1754794119488,0.80902919,117260.0,117250.0,1.4997604]
[1754794120195,0.46273,117260.0,117250.0,1.4997604]
[1754794120498,0.80902919,117260.0,117250.0,1.4997604]
[1754794121397,0.70709919,117260.0,117250.0,1.4997604]
[1754794121896,0.71937919,117260.0,117250.0,1.4997604]
[1754794122200,0.79505919,117260.0,117250.0,1.4997604]
[1754794122600,0.44876,117260.0,117250.0,1.4997604]
[1754794122900,0.79505919,117260.0,117250.0,1.4997604]
[1754794124102,0.74198919,117260.0,117250.0,1.4997604]
[1754794126497,0.79505919,117260.0,117250.0,1.4997604]
[1754794129106,0.44876,117260.0,117250.0,1.4997604]
[1754794129303,0.79505919,117260.0,117250.0,1.4997604]
[1754794129503,0.79505919,117260.0,117250.0,1.4460304]
[1754794130302,0.88032299,117260.0,117250.0,1.3917304]
[1754794130501,0.88032299,117260.0,117250.0,1.3911304]
[1754794130901,0.88032299,117260.0,117250.0,1.4254604]
[1754794131107,0.88032299,117260.0,117250.0,1.4454304]
[1754794132307,1.33073736,117260.0,117240.0,0.0001]
[1754794132502,1.22662938,117250.0,117240.0,0.82739]
[1754794132698,1.22662938,117250.0,117240.0,0.02409]
[1754794132699,0.89914267,117250.0,117240.0,0.02409]
[1754794133399,0.89914267,117250.0,117240.0,0.02609]
[1754794133906,0.89914267,117250.0,117240.0,0.1113683]
[1754794134704,0.55284348,117250.0,117240.0,0.1113683]
[1754794134902,0.89914267,117250.0,117240.0,0.1113683]
[1754794135303,0.90214267,117250.0,117240.0,0.9144083]
[1754794136297,0.90314267,117250.0,117240.0,0.9154083]
[1754794137308,0.88433019,117250.0,117240.0,0.9134083]
[1754794137510,0.88733019,117250.0,117240.0,0.9134083]
[1754794140810,0.88733019,117250.0,117240.0,0.9289483]
[1754794141712,0.88733019,117250.0,117240.0,0.9632783]
[1754794142716,0.88733019,117250.0,117240.0,0.9848383]
[1754794143411,0.88733019,117250.0,117240.0,1.0048083]
[1754794148324,0.541031,117250.0,117240.0,1.0048083]
[1754794148524,0.88733019,117250.0,117240.0,1.0048083]
[1754794151033,0.9061073,117250.0,117240.0,1.0048083]
[1754794151730,0.9061073,117250.0,117240.0,0.2150283]
[1754794151930,0.9061073,117250.0,117240.0,1.0173083]
[1754794155537,0.88733019,117250.0,117240.0,1.0173083]
[1754794157531,0.88733019,117250.0,117240.0,0.06219]
[1754794157732,0.1720583,117240.0,117230.0,0.02459]
[1754794157931,1.22545668,117240.0,117230.0,0.8421]
[1754794158137,1.22545668,117240.0,117230.0,0.02449]
[1754794158338,1.24424723,117240.0,117230.0,0.02449]
[1754794158934,1.24524723,117240.0,117230.0,0.02449]
[1754794159136,1.24724723,117240.0,117230.0,0.02449]
[1754794161038,1.60804723,117240.0,117230.0,0.02449]
[1754794162143,1.60804723,117240.0,117230.0,0.04014]
[1754794162345,1.60804723,117240.0,117230.0,0.1254256]
[1754794162546,1.26174804,117240.0,117230.0,0.2103956]
[1754794163444,1.60804723,117240.0,117230.0,0.2103956]
[1754794164948,0.91544885,117240.0,117230.0,0.2103956]
[1754794165148,1.60804723,117240.0,117230.0,0.2103956]
[1754794165447,1.26174804,117240.0,117230.0,0.2103956]
[1754794165847,1.60804723,117240.0,117230.0,0.2103956]
[1754794167344,1.58925668,117240.0,117230.0,0.2103956]
[1754794170545,1.58925668,117240.0,117230.0,0.1923756]
[1754794170849,1.58925668,117240.0,117230.0,0.1791156]
[1754794171344,1.58925668,117240.0,117230.0,0.1475156]
[1754794171549,1.58925668,117240.0,117230.0,0.1254256]
[1754794173153,1.58925668,117240.0,117230.0,0.2103956]
[1754794173449,1.26177754,117240.0,117230.0,0.2103956]
[1754794175757,1.25877754,117240.0,117230.0,0.2103956]
[1754794175959,1.26177754,117240.0,117230.0,0.2103956]
[1754794176359,1.25977754,117240.0,117230.0,0.2103956]
[1754794176660,1.24095749,117240.0,117230.0,0.2103956]
[1754794177363,1.25977887,117240.0,117230.0,0.2103956]
[1754794181763,0.91347968,117240.0,117230.0,0.2103956]
[1754794182165,1.25977887,117240.0,117230.0,0.2103956]
[1754794184162,1.24095749,117240.0,117230.0,0.2103956]
[1754794185469,1.25960483,117240.0,117230.0,0.2103956]
[1754794185656,1.17432653,117240.0,117230.0,0.2103956]
[1754794187169,0.81352653,117240.0,117230.0,0.2103956]
[1754794187377,0.79487919,117240.0,117230.0,0.2103956]
[1754794187970,0.44858,117240.0,117230.0,0.2103956]
[1754794188169,0.39766,117240.0,117230.0,0.61807153]
[1754794188465,0.3611,117250.0,117230.0,1.32103763]
[1754794188673,0.37343,117250.0,117240.0,1.36979393]
[1754794188874,0.40819,117250.0,117240.0,1.02349474]
[1754794189174,0.42734,117250.0,117240.0,1.02349474]
[1754794189674,0.42734,117250.0,117240.0,1.02449474]
[1754794190371,0.44894,117250.0,117240.0,1.02449474]
[1754794190972,0.44894,117250.0,117240.0,1.29349474]
[1754794191461,0.44894,117250.0,117240.0,1.29449474]
[1754794192072,0.79523919,117250.0,117240.0,1.29449474]
[1754794192776,0.79523919,117250.0,117240.0,1.233698]
[1754794197174,0.88050989,117250.0,117240.0,1.195718]
[1754794197372,0.88050989,117250.0,117240.0,1.229768]
[1754794197568,0.76037919,117250.0,117240.0,1.248368]
[1754794197764,0.44894,117250.0,117240.0,1.248368]
[1754794197971,0.79523919,117250.0,117240.0,1.248368]
[1754794198876,0.44894,117250.0,117240.0,1.248368]
[1754794199077,0.79523919,117250.0,117240.0,1.248368]
[1754794199269,0.79523919,117250.0,117240.0,1.247368]
[1754794200478,0.44894,117250.0,117240.0,1.247368]
[1754794200769,0.79523919,117250.0,117240.0,1.247368]
[1754794202778,0.79523919,117250.0,117240.0,1.013758]
[1754794203880,0.74122919,117250.0,117240.0,1.013758]
[1754794205279,0.79523919,117250.0,117240.0,1.013758]
[1754794207572,0.79523919,117250.0,117240.0,1.014758]
[1754794208581,0.79523919,117250.0,117240.0,1.283758]
[1754794209481,0.79523919,117250.0,117240.0,1.34455474]
[1754794209680,0.79523919,117250.0,117240.0,1.283758]
[1754794209885,0.79523919,117250.0,117240.0,1.34455474]
[1754794212588,0.74122919,117250.0,117240.0,1.34455474]
[1754794212887,0.79100919,117250.0,117240.0,1.34455474]
[1754794213188,0.37293,117250.0,117240.0,1.34455474]
[1754794213388,0.71922919,117250.0,117240.0,1.34455474]
[1754794213590,0.79115919,117250.0,117240.0,1.34455474]
[1754794216387,0.44486,117250.0,117240.0,1.34455474]
[1754794216586,0.79115919,117250.0,117240.0,1.283758]
[1754794217587,0.39508,117250.0,117240.0,1.283758]
[1754794217791,0.74137919,117250.0,117240.0,1.283758]
[1754794218194,0.39508,117250.0,117240.0,1.283758]
[1754794219194,0.3608,117250.0,117240.0,1.63005719]
[1754794219392,0.3608,117250.0,117240.0,1.283758]
[1754794219592,0.3608,117250.0,117240.0,1.63005719]
[1754794219993,0.3611,117260.0,117250.0,0.2114007]
[1754794220194,0.3608,117260.0,117250.0,0.2114007]
[1754794221297,0.3608,117260.0,117250.0,0.21981007]
[1754794221495,0.3608,117260.0,117250.0,0.58353816]
[1754794222191,0.3618,117260.0,117250.0,0.58353816]
[1754794222395,0.001,117260.0,117250.0,0.94433816]
[1754794222591,0.001,117260.0,117250.0,1.21333816]
[1754794223194,0.001,117260.0,117250.0,0.85253816]
[1754794223396,0.001,117260.0,117250.0,1.21333816]
[1754794227499,0.001,117260.0,117250.0,0.85253816]
[1754794227699,0.001,117260.0,117250.0,1.28943487]
[1754794227997,0.001,117260.0,117250.0,0.85253816]
[1754794228200,0.001,117260.0,117250.0,1.21333816]
[1754794228400,0.001,117260.0,117250.0,0.85253816]
[1754794228804,0.001,117260.0,117250.0,1.21333816]
[1754794228995,0.001,117260.0,117250.0,0.85253816]
[1754794230002,0.001,117260.0,117250.0,1.21333816]
[1754794232498,0.001,117260.0,117250.0,0.86703897]
[1754794232701,0.001,117260.0,117250.0,1.21333816]
[1754794233107,0.001,117260.0,117250.0,0.86703897]
[1754794233404,0.001,117260.0,117250.0,1.21333816]
[1754794233602,0.001,117260.0,117250.0,0.50623897]
[1754794233800,0.001,117260.0,117250.0,0.85253816]
[1754794234107,0.001,117260.0,117250.0,1.21333816]
[1754794234307,0.001,117260.0,117250.0,0.85253816]
[1754794237608,0.001,117260.0,117250.0,1.21333816]
[1754794238702,0.001,117260.0,117250.0,1.12636649]
[1754794239917,0.001,117260.0,117250.0,1.38569401]
[1754794240108,0.001,117260.0,117250.0,1.46179072]
[1754794240510,0.001,117260.0,117250.0,1.2024632]
[1754794242905,0.001,117260.0,117250.0,1.12636649]
[1754794245617,0.001,117260.0,117250.0,1.2024632]
[1754794245812,0.001,117260.0,117250.0,2.3817832]
[1754794247517,0.001,117260.0,117250.0,2.30568649]
[1754794248216,0.001,117260.0,117250.0,2.56501401]
[1754794249016,0.001,117260.0,117250.0,2.30568649]
[1754794250217,0.001,117260.0,117250.0,2.3817832]
[1754794252424,0.001,117260.0,117250.0,2.12245568]
[1754794252722,0.001,117260.0,117250.0,2.3817832]
[1754794257229,0.0003,117270.0,117250.0,2.5533198]
[1754794257429,0.0001,117270.0,117260.0,1.26717102]
[1754794257629,0.67300752,117280.0,117260.0,1.43852993]
[1754794257829,0.02484,117270.0,117260.0,1.79939343]
[1754794258026,0.02484,117270.0,117260.0,1.79929343]
[1754794258329,0.28516752,117270.0,117260.0,2.05862095]
[1754794259125,0.31987752,117270.0,117260.0,2.05862095]
[1754794259933,0.31987752,117270.0,117260.0,1.53996591]
[1754794260134,0.33177752,117270.0,117260.0,1.79929343]
[1754794260433,0.07245,117270.0,117260.0,2.05862095]
[1754794260633,0.07245,117270.0,117260.0,1.53996591]
[1754794260824,0.07245,117270.0,117260.0,1.79929343]
[1754794262535,0.12748,117270.0,117260.0,1.79929343]
[1754794263434,0.12748,117270.0,117260.0,1.53996591]
[1754794263638,0.12748,117270.0,117260.0,1.79929343]
[1754794264029,0.38680752,117270.0,117260.0,1.79929343]
[1754794265136,0.38680752,117270.0,117260.0,1.79948343]
[1754794265538,0.74760752,117270.0,117260.0,1.79948343]
[1754794266229,0.74760752,117270.0,117260.0,1.54015591]
[1754794266536,0.74760752,117270.0,117260.0,1.79948343]
[1754794267434,0.74760752,117270.0,117260.0,1.72338672]
[1754794268935,0.74760752,117270.0,117260.0,1.4640592]
[1754794269137,0.74760752,117270.0,117260.0,1.72338672]
[1754794269331,0.74760752,117270.0,117260.0,1.4640592]
[1754794269535,0.74760752,117270.0,117260.0,1.72338672]
[1754794270327,0.74760752,117270.0,117260.0,1.4640592]
[1754794270531,0.48828,117270.0,117260.0,1.79948343]
[1754794271031,0.74760752,117270.0,117260.0,1.79948343]
[1754794273538,0.74760752,117270.0,117260.0,1.54015591]
[1754794273731,0.74760752,117270.0,117260.0,1.79948343]
[1754794274034,0.74760752,117270.0,117260.0,0.68614591]
[1754794274237,1.00693504,117270.0,117260.0,1.4055692]
[1754794275840,0.74760752,117270.0,117260.0,1.4055692]
[1754794278039,1.00693504,117270.0,117260.0,1.48166591]
[1754794278238,0.74760752,117270.0,117260.0,1.48166591]
[1754794278552,0.74760752,117270.0,117260.0,1.4055692]
[1754794279443,0.74760752,117270.0,117260.0,1.4057592]
[1754794279647,0.48828,117270.0,117260.0,1.48185591]
[1754794279840,0.74760752,117270.0,117260.0,1.74118343]
[1754794280041,0.74760752,117270.0,117260.0,1.66508672]
[1754794280346,0.74760752,117270.0,117260.0,1.67158672]
[1754794280549,0.48828,117270.0,117260.0,1.66508672]
[1754794280750,0.74760752,117270.0,117260.0,1.67158672]
[1754794283350,0.48828,117270.0,117260.0,1.67158672]
[1754794283548,0.74760752,117270.0,117260.0,1.4122592]
[1754794283748,0.48828,117270.0,117260.0,1.67158672]
[1754794284043,0.38664,117270.0,117260.0,1.67158672]
[1754794284349,0.38664,117270.0,117260.0,1.93091424]
[1754794284747,0.64596752,117270.0,117260.0,1.93091424]
[1754794284953,0.74581752,117270.0,117260.0,1.67158672]
[1754794286252,0.74581752,117270.0,117260.0,1.66508672]
[1754794287840,0.74581752,117270.0,117260.0,1.4057592]
[1754794288044,0.74581752,117270.0,117260.0,1.66508672]
[1754794292154,0.74581752,117270.0,117260.0,1.4057592]
[1754794292355,0.74581752,117270.0,117260.0,1.66508672]
[1754794293552,0.74581752,117270.0,117260.0,0.6209392]
[1754794293755,0.74581752,117270.0,117260.0,1.4159392]
[1754794294056,0.74581752,117270.0,117260.0,1.73603754]
[1754794295153,0.74581752,117270.0,117260.0,1.47671002]
[1754794295350,0.74581752,117270.0,117260.0,1.73603754]
[1754794296252,1.00514504,117270.0,117260.0,1.46578002]
[1754794296455,1.00514504,117270.0,117260.0,1.4050092]
[1754794297056,0.74581752,117270.0,117260.0,1.4050092]
[1754794297555,0.74581752,117270.0,117260.0,1.46579249]
[1754794298455,0.48649,117270.0,117260.0,1.46579249]
[1754794298656,0.74581752,117270.0,117260.0,1.46579249]
[1754794299457,0.48649,117270.0,117260.0,1.4050092]
[1754794299663,0.74581752,117270.0,117260.0,1.66433672]
[1754794299852,0.74581752,117270.0,117260.0,1.4050092]
[1754794300353,0.74581752,117270.0,117260.0,1.66433672]
[1754794301055,0.74581752,117270.0,117260.0,1.4050092]
[1754794301256,0.48649,117270.0,117260.0,1.4050092]
[1754794301458,0.74581752,117270.0,117260.0,1.4050092]
[1754794301958,0.74581752,117270.0,117260.0,1.66433672]
[1754794303864,0.48649,117270.0,117260.0,0.6204492]
[1754794304053,0.48649,117270.0,117260.0,1.4152492]
[1754794304363,0.48649,117270.0,117260.0,1.67457672]
[1754794304556,0.74581752,117270.0,117260.0,1.68107672]
[1754794304758,0.74581752,117270.0,117260.0,1.4152492]
[1754794305462,0.48649,117270.0,117260.0,1.4152492]
[1754794305658,0.74581752,117270.0,117260.0,1.4152492]
[1754794307364,0.74581752,117270.0,117260.0,1.67457672]
[1754794307765,0.74581752,117270.0,117260.0,1.73536001]
[1754794308865,0.74581752,117270.0,117260.0,1.67457672]
[1754794310465,0.64596752,117270.0,117260.0,1.67457672]
[1754794310664,0.64596752,117270.0,117260.0,1.68107672]
[1754794310865,0.74769752,117270.0,117260.0,1.75717343]
[1754794311164,0.74769752,117270.0,117260.0,1.68107672]
[1754794312965,0.74769752,117270.0,117260.0,1.74186444]
[1754794314172,0.48837,117270.0,117260.0,1.74186444]
[1754794314376,0.74769752,117270.0,117260.0,1.74186444]
[1754794316387,0.48837,117270.0,117260.0,1.74186444]
[1754794316785,0.74769752,117270.0,117260.0,1.74186444]
[1754794317384,0.38689752,117270.0,117260.0,1.74186444]
[1754794317584,0.74769752,117270.0,117260.0,1.74186444]
[1754794317882,0.48837,117270.0,117260.0,1.74186444]
[1754794318086,0.74769752,117270.0,117260.0,1.74186444]
[1754794318890,0.48837,117270.0,117260.0,1.74186444]
[1754794319186,0.74769752,117270.0,117260.0,1.75717343]
[1754794319389,0.74769752,117270.0,117260.0,1.49784591]
[1754794319591,0.74769752,117270.0,117260.0,1.75067343]
[1754794320383,0.74769752,117270.0,117260.0,1.4152492]
[1754794321984,0.74769752,117270.0,117260.0,1.4048492]
[1754794323892,0.74769752,117270.0,117260.0,1.46564772]
[1754794329892,0.74769752,117270.0,117260.0,1.4048492]
[1754794330893,0.74769752,117270.0,117260.0,1.48094591]
[1754794333200,0.48837,117270.0,117260.0,1.48094591]
[1754794333498,0.74769752,117270.0,117260.0,1.49098591]
[1754794336004,0.48837,117270.0,117260.0,1.49098591]
[1754794336299,0.74769752,117270.0,117260.0,1.49098591]
[1754794337608,0.74769752,117270.0,117260.0,1.47571323]
[1754794338702,0.74769752,117270.0,117260.0,1.47671323]
[1754794340003,0.74669752,117270.0,117260.0,1.47771323]
[1754794340908,0.74669752,117270.0,117260.0,1.4168892]
[1754794344110,0.74669752,117270.0,117260.0,1.4233892]
[1754794347511,0.74669752,117270.0,117260.0,1.48421323]
[1754794348413,0.38589752,117270.0,117260.0,1.48421323]
[1754794348614,0.74669752,117270.0,117260.0,1.48421323]
[1754794351219,0.74669752,117270.0,117260.0,0.68977323]
[1754794351421,0.74669752,117270.0,117260.0,1.48393323]
[1754794351618,0.48737,117270.0,117260.0,1.47743323]
[1754794351918,0.74669752,117270.0,117260.0,1.4166092]
[1754794352313,0.74669752,117270.0,117260.0,1.47743533]
[1754794353219,1.00602504,117270.0,117260.0,0.68327533]
[1754794353426,1.00602504,117270.0,117260.0,1.47735533]
[1754794355723,1.00602504,117270.0,117260.0,1.4165292]
[1754794356416,1.00602504,117270.0,117260.0,1.1475292]
[1754794357025,0.48737,117270.0,117260.0,1.1475292]
[1754794357322,1.00602504,117270.0,117260.0,1.1475292]
[1754794358625,1.00602504,117270.0,117260.0,1.22362591]
[1754794360226,1.00602504,117270.0,117260.0,1.1475292]
[1754794360819,0.74669752,117270.0,117260.0,1.1475292]
[1754794361028,0.74669752,117270.0,117260.0,1.1540292]
[1754794361922,0.64496752,117270.0,117260.0,1.1475292]
[1754794362222,0.67789752,117270.0,117260.0,1.1540292]
[1754794362429,0.74500752,117270.0,117260.0,1.1540292]
[1754794363916,1.00433504,117270.0,117260.0,0.3534492]
[1754794364121,1.00433504,117270.0,117260.0,1.1473292]
[1754794366331,0.74500752,117270.0,117260.0,1.1473292]
[1754794367231,1.00433504,117270.0,117260.0,1.1473292]
[1754794368434,0.74500752,117270.0,117260.0,1.1473292]
[1754794368837,1.08959074,117270.0,117260.0,0.087263]
[1754794369130,1.08959074,117270.0,117260.0,0.94181542]
[1754794369930,1.00433504,117270.0,117260.0,0.95221542]
[1754794370135,1.00533504,117270.0,117260.0,0.895883]
[1754794370324,0.74600752,117270.0,117260.0,0.895883]
[1754794370528,0.74600752,117270.0,117260.0,0.889383]
[1754794372735,0.74500752,117270.0,117260.0,0.889383]
[1754794372937,0.74500752,117270.0,117260.0,0.891383]
[1754794375839,1.00433504,117270.0,117260.0,0.891383]
[1754794376638,0.48568,117270.0,117260.0,0.891383]
[1754794376936,1.00433504,117270.0,117260.0,0.891383]
[1754794380142,1.00433504,117270.0,117260.0,0.95218661]
[1754794382736,1.08959074,117270.0,117260.0,0.95218661]
[1754794383142,1.00433504,117270.0,117260.0,0.95218661]
[1754794384737,1.08959074,117270.0,117260.0,0.95218661]
[1754794385041,1.08959074,117270.0,117260.0,0.891383]
[1754794385434,0.5709357,117270.0,117260.0,0.891383]
[1754794385631,1.08959074,117270.0,117260.0,0.891383]
[1754794386851,1.08959074,117270.0,117260.0,0.890943]
[1754794387050,1.08959074,117270.0,117260.0,0.097663]
[1754794387247,1.00433504,117270.0,117260.0,0.890903]
[1754794387449,1.00433504,117270.0,117260.0,0.097663]
[1754794387646,1.00433504,117270.0,117260.0,0.15847047]
[1754794387952,1.00433504,117270.0,117260.0,0.95171047]
[1754794388751,0.48568,117270.0,117260.0,0.95171047]
[1754794389050,1.00433504,117270.0,117260.0,0.95171047]
[1754794390154,0.48568,117270.0,117260.0,0.95171047]
[1754794390453,1.00433504,117270.0,117260.0,0.95171047]
[1754794394056,0.74500752,117270.0,117260.0,0.95171047]
[1754794394255,0.74500752,117270.0,117260.0,0.95821047]
[1754794394458,0.74568752,117270.0,117260.0,1.21753799]
[1754794395752,0.48636,117270.0,117260.0,1.21753799]
[1754794395953,0.74568752,117270.0,117260.0,1.21753799]
[1754794396351,0.74568752,117270.0,117260.0,0.95821047]
[1754794396654,0.48636,117270.0,117260.0,0.95821047]
[1754794396957,0.74568752,117270.0,117260.0,0.95821047]
[1754794397557,0.74568752,117270.0,117260.0,0.897403]
[1754794400856,0.48636,117270.0,117260.0,0.897403]
[1754794401058,0.74568752,117270.0,117260.0,0.897403]
[1754794401460,0.48636,117270.0,117260.0,0.897403]
[1754794401657,0.74568752,117270.0,117260.0,0.897403]
[1754794402358,0.74568752,117270.0,117260.0,0.95823926]
[1754794405163,0.69447752,117270.0,117260.0,0.95173926]
[1754794405367,0.72884752,117270.0,117260.0,0.95823926]
[1754794405566,0.74568752,117270.0,117260.0,0.95823926]
[1754794407165,0.65654752,117270.0,117260.0,0.95173926]
[1754794407371,0.43159,117270.0,117260.0,0.95823926]
[1754794407562,0.74534752,117270.0,117260.0,0.95823926]
[1754794409968,0.74534752,117270.0,117260.0,1.22723926]
[1754794412264,0.74534752,117270.0,117260.0,1.166403]
[1754794412458,0.74534752,117270.0,117260.0,1.149503]
[1754794414268,1.00467504,117270.0,117260.0,1.149503]
[1754794414476,1.00467504,117270.0,117260.0,1.22559971]
[1754794417875,0.74534752,117270.0,117260.0,1.149503]
[1754794419376,0.74534752,117270.0,117260.0,1.148503]
[1754794420180,0.74534752,117270.0,117260.0,1.149503]
[1754794420580,0.74534752,117270.0,117260.0,1.148503]
[1754794420773,0.74534752,117270.0,117260.0,1.150503]
[1754794424378,1.00467504,117270.0,117260.0,1.150503]
[1754794425486,0.74534752,117270.0,117260.0,1.150503]
[1754794426483,0.48602,117270.0,117260.0,1.150503]
[1754794426677,0.74534752,117270.0,117260.0,1.150503]
[1754794427186,0.74534752,117270.0,117260.0,1.21134336]
[1754794427577,0.74534752,117270.0,117260.0,1.150503]
[1754794427872,0.48602,117270.0,117260.0,1.21134336]
[1754794428073,0.74534752,117270.0,117260.0,1.21134336]
[1754794430388,1.00467504,117270.0,117260.0,1.21134336]
[1754794431079,1.08993074,117270.0,117260.0,0.41810336]
[1754794431284,1.00467504,117270.0,117260.0,1.21014336]
[1754794431687,1.00467504,117270.0,117260.0,1.20814336]
[1754794433394,1.00467504,117270.0,117260.0,0.94954336]
[1754794437099,1.00467504,117270.0,117260.0,0.888703]
[1754794437602,0.48602,117270.0,117260.0,0.94954336]
[1754794437902,1.00467504,117270.0,117260.0,0.94954336]
[1754794438299,1.00184504,117270.0,117260.0,0.94954336]
[1754794438497,0.74251752,117270.0,117260.0,0.94954336]
[1754794439604,0.74251752,117270.0,117260.0,0.15750336]
[1754794439796,0.74251752,117270.0,117260.0,0.94930336]
[1754794440906,0.74251752,117270.0,117260.0,0.95580336]
[1754794443407,1.00184504,117270.0,117260.0,0.94930336]
[1754794447409,0.74251752,117270.0,117260.0,0.94930336]
[1754794449008,0.48319,117270.0,117260.0,0.94930336]
[1754794449410,0.74251752,117270.0,117260.0,0.94930336]
[1754794449610,0.48319,117270.0,117260.0,0.94930336]
[1754794449810,0.74251752,117270.0,117260.0,0.94930336]
[1754794450311,0.64303752,117270.0,117260.0,1.21513088]
[1754794450914,0.64303752,117270.0,117260.0,0.95580336]
[1754794451114,0.64303752,117270.0,117260.0,1.48413088]
[1754794451312,0.28223752,117270.0,117260.0,1.48413088]
[1754794452617,0.28223752,117270.0,117260.0,1.22480336]
[1754794452815,0.28223752,117270.0,117260.0,1.48413088]
[1754794453012,0.28223752,117270.0,117260.0,1.42329052]
[1754794453316,0.28223752,117270.0,117260.0,1.163963]
[1754794453515,0.38141752,117270.0,117260.0,1.42329052]
[1754794454015,0.38141752,117270.0,117260.0,1.163963]
[1754794454216,0.38141752,117270.0,117260.0,1.42329052]
[1754794454217,0.25932752,117270.0,117260.0,1.42329052]
[1754794454513,0.28223752,117270.0,117260.0,1.42329052]
[1754794456116,0.28223752,117270.0,117260.0,1.163963]
[1754794456316,0.28223752,117270.0,117260.0,1.42329052]
[1754794456819,0.28223752,117270.0,117260.0,1.163963]
[1754794457118,0.28223752,117270.0,117260.0,1.42329052]
[1754794458110,0.28223752,117270.0,117260.0,1.49938723]
[1754794459218,0.28223752,117270.0,117260.0,1.24005971]
[1754794459422,0.28223752,117270.0,117260.0,1.49938723]
[1754794460518,0.28223752,117270.0,117260.0,1.24005971]
[1754794460719,0.28223752,117270.0,117260.0,1.49938723]
[1754794461013,0.34365752,117270.0,117260.0,1.49938723]
[1754794461219,0.34365752,117270.0,117260.0,1.42329052]
[1754794462316,0.34365752,117270.0,117260.0,1.163963]
[1754794462621,0.38141752,117270.0,117260.0,1.147063]
[1754794463322,0.12209,117270.0,117260.0,1.147063]
[1754794463515,0.38141752,117270.0,117260.0,1.147063]
[1754794463820,0.38141752,117270.0,117260.0,1.153563]
[1754794465017,0.38141752,117270.0,117260.0,1.41289052]
[1754794465217,0.38141752,117270.0,117260.0,1.147063]
[1754794465518,0.38141752,117270.0,117260.0,1.40639052]
[1754794466419,0.38141752,117270.0,117260.0,1.48248723]
[1754794466719,0.38141752,117270.0,117260.0,1.22315971]
[1754794466920,0.38141752,117270.0,117260.0,1.48248723]
[1754794468021,0.38141752,117270.0,117260.0,1.22315971]
[1754794468222,0.38141752,117270.0,117260.0,1.48248723]
[1754794468825,0.38141752,117270.0,117260.0,1.22315971]
[1754794469217,0.38141752,117270.0,117260.0,1.48248723]
[1754794470227,0.38141752,117270.0,117260.0,1.22315971]
[1754794470823,0.38141752,117270.0,117260.0,1.48248723]
[1754794471025,0.38141752,117270.0,117260.0,1.22315971]
[1754794472024,0.38141752,117270.0,117260.0,1.22965971]
[1754794473318,0.38141752,117270.0,117260.0,1.153563]
[1754794475022,0.38141752,117270.0,117260.0,1.41289052]
[1754794475329,0.38141752,117270.0,117260.0,1.153563]
[1754794476132,0.38141752,117270.0,117260.0,1.41289052]
[1754794476931,0.38141752,117270.0,117260.0,1.153563]
[1754794477131,0.38141752,117270.0,117260.0,1.41289052]
[1754794477832,0.12209,117270.0,117260.0,1.41289052]
[1754794478031,0.38141752,117270.0,117260.0,1.41289052]
[1754794479731,0.12209,117270.0,117260.0,1.41289052]
[1754794480034,0.38141752,117270.0,117260.0,1.42988239]
[1754794483237,0.12209,117270.0,117260.0,1.42988239]
[1754794483438,0.38141752,117270.0,117260.0,1.5059791]
[1754794486938,0.38141752,117270.0,117260.0,1.24665158]
[1754794487142,0.38141752,117270.0,117260.0,1.5059791]
[1754794487840,0.28223752,117270.0,117260.0,1.5059791]
[1754794488341,0.28223752,117270.0,117260.0,1.6700006]
[1754794488342,0.25932752,117270.0,117260.0,1.6700006]
[1754794488537,0.28358752,117270.0,117260.0,1.6700006]
[1754794489735,0.02426,117270.0,117260.0,1.6700006]
[1754794489935,0.28358752,117270.0,117260.0,1.6700006]
[1754794490440,0.3611,117280.0,117270.0,0.0082657]
[1754794490640,0.28358752,117280.0,117270.0,0.42067993]
[1754794491247,0.3611,117290.0,117270.0,0.59118683]
[1754794491442,0.28358752,117280.0,117270.0,0.2558626]
[1754794491645,0.02426,117280.0,117270.0,1.0459626]
[1754794491838,0.02426,117280.0,117270.0,1.15323023]
[1754794492241,0.02626,117280.0,117270.0,1.15323023]
[1754794492744,0.28558752,117280.0,117270.0,1.57429012]
[1754794492939,0.28558752,117280.0,117270.0,1.38195354]
[1754794493136,0.28558752,117280.0,117270.0,1.64128106]
[1754794493335,0.28558752,117280.0,117270.0,1.71924417]
[1754794494046,0.28358752,117280.0,117270.0,1.46091665]
[1754794494235,0.28358752,117280.0,117270.0,1.72024417]
[1754794494441,0.28358752,117280.0,117270.0,2.08104417]
[1754794495147,0.28358752,117280.0,117270.0,1.82171665]
[1754794495340,0.28358752,117280.0,117270.0,1.72024417]
[1754794496941,0.28358752,117280.0,117270.0,2.08104417]
[1754794497648,0.28358752,117280.0,117270.0,1.82171665]
[1754794497846,0.28358752,117280.0,117270.0,2.08104417]
[1754794498255,0.28358752,117280.0,117270.0,2.08099997]
[1754794499454,0.28358752,117280.0,117270.0,1.82167245]
[1754794499644,0.28358752,117280.0,117270.0,2.08099997]
[1754794499952,0.28358752,117280.0,117270.0,1.82167245]
[1754794500152,0.28358752,117280.0,117270.0,2.08099997]
[1754794501151,0.02426,117280.0,117270.0,2.08099997]
[1754794501351,0.28358752,117280.0,117270.0,2.08099997]
[1754794502052,0.28358752,117280.0,117270.0,2.00508106]
[1754794504748,0.02426,117280.0,117270.0,2.00508106]
[1754794504953,0.28358752,117280.0,117270.0,2.00508106]
[1754794507546,0.25932752,117280.0,117270.0,2.00508106]
[1754794507752,0.02383,117290.0,117280.0,0.0852488]
[1754794507957,0.28285752,117290.0,117280.0,0.40528206]
[1754794508253,0.31733752,117290.0,117280.0,0.40528206]
[1754794508555,0.36631752,117290.0,117280.0,0.40528206]
[1754794508750,0.38228752,117290.0,117280.0,0.40528206]
[1754794509054,0.30923752,117290.0,117280.0,0.40528206]
[1754794509254,0.34371752,117290.0,117280.0,0.40528206]
[1754794509462,0.38228752,117290.0,117280.0,0.40528206]
[1754794509753,0.38228752,117290.0,117280.0,0.34557632]